[Event "Early-Titled-Tuesday-Blitz-September-05-2023"]
[Site "Chess.com"]
[Date "2023.09.05"]
[Round "2"]
[White "KatakuriDono"]
[Black "ActorXu"]
[Result "0-1"]
[WhiteElo "2323"]
[BlackElo "2722"]
[TimeControl "180+1"]
[EndTime "8:18:34 PDT"]
[Termination "ActorXu won by checkmate"]

1. d4 {[%clk 0:03:00.9]} 1... Nf6 {[%clk 0:02:59.7]} 2. c4 {[%clk 0:02:58.6]}
2... e6 {[%clk 0:02:59.8]} 3. Nf3 {[%clk 0:02:56.5]} 3... d5 {[%clk 0:02:58.3]}
4. g3 {[%clk 0:02:53.4]} 4... Be7 {[%clk 0:02:49.9]} 5. Bg2 {[%clk 0:02:53.2]}
5... O-O {[%clk 0:02:50.8]} 6. O-O {[%clk 0:02:53.2]} 6... dxc4 {[%clk
0:02:50.9]} 7. Ne5 {[%clk 0:02:53.1]} 7... Nc6 {[%clk 0:02:50.7]} 8. Nxc6 {[%clk
0:02:53.3]} 8... bxc6 {[%clk 0:02:51.6]} 9. Na3 {[%clk 0:02:53.6]} 9... Bxa3
{[%clk 0:02:50.2]} 10. bxa3 {[%clk 0:02:54.5]} 10... Ba6 {[%clk 0:02:48.8]} 11.
Qd2 {[%clk 0:02:54.3]} 11... Rb8 {[%clk 0:02:47.1]} 12. Qa5 {[%clk 0:02:53.8]}
12... Qc8 {[%clk 0:02:47.2]} 13. a4 {[%clk 0:02:42.4]} 13... Nd5 {[%clk
0:02:44.6]} 14. Ba3 {[%clk 0:02:39.7]} 14... Rd8 {[%clk 0:02:42.4]} 15. Bc5
{[%clk 0:02:39.4]} 15... c3 {[%clk 0:02:10.8]} 16. Rfe1 {[%clk 0:02:19.9]} 16...
Rb2 {[%clk 0:02:10]} 17. e4 {[%clk 0:02:16.5]} 17... Nb6 {[%clk 0:02:10.1]} 18.
Qxc3 {[%clk 0:02:12.8]} 18... Nxa4 {[%clk 0:02:07.6]} 19. Qa3 {[%clk 0:02:10.2]}
19... Nxc5 {[%clk 0:02:05.3]} 20. Qxb2 {[%clk 0:02:08.3]} 20... Nd3 {[%clk
0:02:05.4]} 21. Qc3 {[%clk 0:02:04.6]} 21... Nxe1 {[%clk 0:02:05.6]} 22. Rxe1
{[%clk 0:02:05.4]} 22... Qb7 {[%clk 0:01:52.5]} 23. e5 {[%clk 0:02:02.6]} 23...
Qb6 {[%clk 0:01:49.7]} 24. Bxc6 {[%clk 0:01:51.2]} 24... Qxd4 {[%clk 0:01:44.2]}
25. Qa3 {[%clk 0:01:50.2]} 25... Bc4 {[%clk 0:01:27.9]} 26. Qe7 {[%clk
0:01:47.3]} 26... Qd2 {[%clk 0:01:26.1]} 27. Rb1 {[%clk 0:01:37.7]} 27... h6
{[%clk 0:00:42.1]} 28. Be8 {[%clk 0:01:35.6]} 28... Qd3 {[%clk 0:00:28.8]} 29.
Bxf7+ {[%clk 0:01:26.8]} 29... Kh7 {[%clk 0:00:27.2]} 30. Re1 {[%clk 0:01:21.7]}
30... Rd7 {[%clk 0:00:13.4]} 31. Qf8 {[%clk 0:01:17.8]} 31... Rd8 {[%clk
0:00:13.6]} 32. Qe7 {[%clk 0:01:16.2]} 32... Qd7 {[%clk 0:00:11.3]} 33. Qc5
{[%clk 0:01:10.4]} 33... Bxa2 {[%clk 0:00:05.4]} 34. Bh5 {[%clk 0:01:05.1]}
34... Bd5 {[%clk 0:00:05.5]} 35. Qc2+ {[%clk 0:01:01.6]} 35... Kh8 {[%clk
0:00:05.3]} 36. Rb1 {[%clk 0:00:58.6]} 36... a5 {[%clk 0:00:05]} 37. Ra1 {[%clk
0:00:57.5]} 37... Ra8 {[%clk 0:00:05.4]} 38. Qg6 {[%clk 0:00:54]} 38... a4
{[%clk 0:00:05.7]} 39. Be2 {[%clk 0:00:52.8]} 39... Qe8 {[%clk 0:00:04]} 40. Qc2
{[%clk 0:00:51]} 40... a3 {[%clk 0:00:04.2]} 41. Qd3 {[%clk 0:00:45.7]} 41... a2
{[%clk 0:00:04.5]} 42. Bd1 {[%clk 0:00:46.1]} 42... Qc6 {[%clk 0:00:02.5]} 43.
Bc2 {[%clk 0:00:44]} 43... Kg8 {[%clk 0:00:03]} 44. Qh7+ {[%clk 0:00:42]} 44...
Kf8 {[%clk 0:00:03.7]} 45. Qd3 {[%clk 0:00:39.2]} 45... Qc4 {[%clk 0:00:03.6]}
46. Qd2 {[%clk 0:00:34.8]} 46... Bc6 {[%clk 0:00:03.1]} 47. Qf4+ {[%clk
0:00:21.2]} 47... Qxf4 {[%clk 0:00:03.2]} 48. gxf4 {[%clk 0:00:22.1]} 48... Bd5
{[%clk 0:00:03.8]} 49. Kf1 {[%clk 0:00:22.7]} 49... Rb8 {[%clk 0:00:04.3]} 50.
Ke2 {[%clk 0:00:20.9]} 50... Rb4 {[%clk 0:00:04.9]} 51. Ke3 {[%clk 0:00:20.6]}
51... Ke7 {[%clk 0:00:04.9]} 52. h4 {[%clk 0:00:20.2]} 52... c5 {[%clk
0:00:05.4]} 53. Rg1 {[%clk 0:00:15.4]} 53... Rb2 {[%clk 0:00:05.6]} 54. Kd2
{[%clk 0:00:14.4]} 54... Be4 {[%clk 0:00:05.3]} 55. Rxg7+ {[%clk 0:00:13.8]}
55... Kf8 {[%clk 0:00:05.7]} 56. Ra7 {[%clk 0:00:11.7]} 56... Rxc2+ {[%clk
0:00:06.5]} 57. Ke3 {[%clk 0:00:12.2]} 57... Bd5 {[%clk 0:00:07.2]} 58. f5
{[%clk 0:00:11.4]} 58... Rc1 {[%clk 0:00:07.4]} 59. fxe6 {[%clk 0:00:08.8]}
59... a1=Q {[%clk 0:00:07.5]} 60. Rf7+ {[%clk 0:00:09]} 60... Ke8 {[%clk
0:00:07.6]} 61. Rh7 {[%clk 0:00:09.4]} 61... Qd4+ {[%clk 0:00:08]} 62. Ke2
{[%clk 0:00:08.9]} 62... Rc2+ {[%clk 0:00:08.4]} 63. Kf1 {[%clk 0:00:08.9]}
63... Qa1# {[%clk 0:00:09.1]} 0-1

[Event "Early-Titled-Tuesday-Blitz-September-05-2023"]
[Site "Chess.com"]
[Date "2023.09.05"]
[Round "2"]
[White "TioCridineno"]
[Black "FARIZA2018"]
[Result "0-1"]
[WhiteElo "2336"]
[BlackElo "2526"]
[TimeControl "180+1"]
[EndTime "8:18:39 PDT"]
[Termination "FARIZA2018 won by resignation"]

1. e4 {[%clk 0:03:00.9]} 1... e5 {[%clk 0:03:00]} 2. Nf3 {[%clk 0:03:00.6]} 2...
Nc6 {[%clk 0:02:59.9]} 3. Bb5 {[%clk 0:03:01.2]} 3... a6 {[%clk 0:02:57.7]} 4.
Ba4 {[%clk 0:03:01.4]} 4... Nf6 {[%clk 0:02:57.7]} 5. O-O {[%clk 0:03:00.9]}
5... Be7 {[%clk 0:02:56.6]} 6. Re1 {[%clk 0:03:00.8]} 6... b5 {[%clk 0:02:55.6]}
7. Bb3 {[%clk 0:03:00.8]} 7... d6 {[%clk 0:02:56.1]} 8. c3 {[%clk 0:03:00.1]}
8... O-O {[%clk 0:02:54.9]} 9. d4 {[%clk 0:02:59.9]} 9... Bb7 {[%clk 0:02:52.5]}
10. Nbd2 {[%clk 0:02:55.2]} 10... Re8 {[%clk 0:02:50.2]} 11. Ng5 {[%clk
0:02:50.9]} 11... Rf8 {[%clk 0:02:49.4]} 12. Ngf3 {[%clk 0:02:50.9]} 12... h6
{[%clk 0:02:49.2]} 13. Nf1 {[%clk 0:02:48.1]} 13... Re8 {[%clk 0:02:49.3]} 14.
Ng3 {[%clk 0:02:48.2]} 14... Bf8 {[%clk 0:02:49]} 15. a4 {[%clk 0:02:40.2]}
15... Na5 {[%clk 0:02:47.3]} 16. Bc2 {[%clk 0:02:40]} 16... c5 {[%clk 0:02:46]}
17. axb5 {[%clk 0:02:37.4]} 17... axb5 {[%clk 0:02:45.6]} 18. dxe5 {[%clk
0:02:26.1]} 18... dxe5 {[%clk 0:02:45.1]} 19. Qxd8 {[%clk 0:02:25.5]} 19...
Rexd8 {[%clk 0:02:44.9]} 20. Nxe5 {[%clk 0:02:21]} 20... Bd6 {[%clk 0:02:40.7]}
21. Nf3 {[%clk 0:02:15.6]} 21... Bc7 {[%clk 0:02:29.5]} 22. Be3 {[%clk
0:02:06.4]} 22... c4 {[%clk 0:02:24.5]} 23. Bd4 {[%clk 0:02:04.6]} 23... Ne8
{[%clk 0:02:06.1]} 24. e5 {[%clk 0:01:48.6]} 24... Nb3 {[%clk 0:01:59.6]} 25.
Rxa8 {[%clk 0:01:37.5]} 25... Rxa8 {[%clk 0:01:58.9]} 26. Be4 {[%clk 0:01:34.4]}
26... Bxe4 {[%clk 0:01:50.4]} 27. Nxe4 {[%clk 0:01:34.3]} 27... Ra2 {[%clk
0:01:40.6]} 28. Rb1 {[%clk 0:01:33.7]} 28... Bb8 {[%clk 0:01:29.5]} 29. Nfd2
{[%clk 0:01:32.2]} 29... Nxd2 {[%clk 0:00:48.8]} 30. Nxd2 {[%clk 0:01:30.9]}
30... Nc7 {[%clk 0:00:48.9]} 31. Kf1 {[%clk 0:01:11]} 31... Ne6 {[%clk
0:00:48.7]} 32. Ke2 {[%clk 0:01:10.4]} 32... Nf4+ {[%clk 0:00:48.8]} 33. Kf3
{[%clk 0:00:58.4]} 33... Nd3 {[%clk 0:00:48.4]} 34. Ke4 {[%clk 0:00:54.5]} 34...
Nxb2 {[%clk 0:00:37.3]} 35. f4 {[%clk 0:00:34.1]} 35... Bc7 {[%clk 0:00:33.5]}
36. Nf3 {[%clk 0:00:33.1]} 36... Ba5 {[%clk 0:00:23.7]} 37. g3 {[%clk
0:00:23.8]} 37... Na4 {[%clk 0:00:22.8]} 38. Rxb5 {[%clk 0:00:21.8]} 38... Bxc3
{[%clk 0:00:22.9]} 39. Rb8+ {[%clk 0:00:21.2]} 39... Kh7 {[%clk 0:00:22.9]} 40.
Rc8 {[%clk 0:00:21.5]} 40... Bxd4 {[%clk 0:00:21.9]} 41. Nxd4 {[%clk 0:00:21.6]}
41... c3 {[%clk 0:00:21]} 42. f5 {[%clk 0:00:20.9]} 42... Ra1 {[%clk 0:00:14.8]}
43. e6 {[%clk 0:00:21]} 43... fxe6 {[%clk 0:00:14.9]} 44. fxe6 {[%clk
0:00:21.7]} 44... Re1+ {[%clk 0:00:15]} 45. Kd5 {[%clk 0:00:21.8]} 45... Nb6+
{[%clk 0:00:14.8]} 46. Kd6 {[%clk 0:00:20.7]} 46... Nxc8+ {[%clk 0:00:15.4]} 47.
Kd7 {[%clk 0:00:21.6]} 47... Nb6+ {[%clk 0:00:15.5]} 48. Kc6 {[%clk 0:00:21.5]}
48... Nc4 {[%clk 0:00:15.6]} 49. Kd7 {[%clk 0:00:21.7]} 49... Na3 {[%clk
0:00:15.2]} 50. e7 {[%clk 0:00:21.5]} 50... c2 {[%clk 0:00:15.5]} 51. Ne6 {[%clk
0:00:19]} 51... c1=Q {[%clk 0:00:14.9]} 52. e8=Q {[%clk 0:00:19.6]} 52... Qd2+
{[%clk 0:00:14.5]} 53. Ke7 {[%clk 0:00:19.1]} 53... Qb4+ {[%clk 0:00:13.9]} 54.
Kf7 {[%clk 0:00:19.1]} 54... Rf1+ {[%clk 0:00:13.8]} 55. Nf4 {[%clk 0:00:18.1]}
55... Qc4+ {[%clk 0:00:13.5]} 56. Ke7 {[%clk 0:00:17.9]} 56... Qe4+ {[%clk
0:00:13.5]} 57. Kf7 {[%clk 0:00:18]} 57... Qxe8+ {[%clk 0:00:13.6]} 58. Kxe8
{[%clk 0:00:18.9]} 58... Nc4 {[%clk 0:00:13.7]} 59. h4 {[%clk 0:00:18.2]} 59...
Ne3 {[%clk 0:00:14.1]} 60. h5 {[%clk 0:00:18.3]} 60... Nf5 {[%clk 0:00:14.4]}
61. Ng6 {[%clk 0:00:17.8]} 61... Nxg3 {[%clk 0:00:14.3]} 62. Nf8+ {[%clk
0:00:18.3]} 62... Kg8 {[%clk 0:00:14.6]} 63. Ng6 {[%clk 0:00:18.5]} 63... Nxh5
{[%clk 0:00:14.8]} 64. Ne7+ {[%clk 0:00:19.2]} 64... Kh7 {[%clk 0:00:14.7]} 0-1

[Event "Early-Titled-Tuesday-Blitz-September-05-2023"]
[Site "Chess.com"]
[Date "2023.09.05"]
[Round "2"]
[White "klimkoj"]
[Black "ArmanGhevondyanchess"]
[Result "1-0"]
[WhiteElo "2788"]
[BlackElo "2456"]
[TimeControl "180+1"]
[EndTime "8:18:44 PDT"]
[Termination "klimkoj won by resignation"]

1. d4 {[%clk 0:03:00.9]} 1... Nf6 {[%clk 0:02:59]} 2. c4 {[%clk 0:03:01.5]} 2...
g6 {[%clk 0:02:59.2]} 3. Nf3 {[%clk 0:03:01.3]} 3... Bg7 {[%clk 0:02:59.3]} 4.
g3 {[%clk 0:03:02.2]} 4... O-O {[%clk 0:02:59.5]} 5. Bg2 {[%clk 0:03:03.1]} 5...
d5 {[%clk 0:03:00.2]} 6. O-O {[%clk 0:03:04]} 6... c5 {[%clk 0:03:00.5]} 7. cxd5
{[%clk 0:03:00.8]} 7... Qxd5 {[%clk 0:02:59.4]} 8. Nc3 {[%clk 0:02:59.7]} 8...
Qh5 {[%clk 0:02:59.6]} 9. dxc5 {[%clk 0:02:58.7]} 9... Qxc5 {[%clk 0:02:58.2]}
10. Bf4 {[%clk 0:02:56.6]} 10... Nc6 {[%clk 0:02:58]} 11. Rc1 {[%clk 0:02:55.9]}
11... Qh5 {[%clk 0:02:57.8]} 12. Qb3 {[%clk 0:02:44.7]} 12... e5 {[%clk
0:02:48.5]} 13. Bd2 {[%clk 0:02:38.3]} 13... h6 {[%clk 0:02:41.5]} 14. h4 {[%clk
0:02:30.6]} 14... g5 {[%clk 0:02:30.7]} 15. hxg5 {[%clk 0:02:18.3]} 15... Ng4
{[%clk 0:02:27.6]} 16. Rfe1 {[%clk 0:02:01.5]} 16... Nd4 {[%clk 0:01:51.4]} 17.
Nxd4 {[%clk 0:01:54.1]} 17... Qh2+ {[%clk 0:01:47.6]} 18. Kf1 {[%clk 0:01:54.6]}
18... exd4 {[%clk 0:01:46.3]} 19. Nb5 {[%clk 0:01:39.3]} 19... Be6 {[%clk
0:01:29.8]} 20. Qf3 {[%clk 0:01:34.3]} 20... Qh5 {[%clk 0:01:24.8]} 21. Kg1
{[%clk 0:01:32.1]} 21... Qh2+ {[%clk 0:01:24.4]} 22. Kf1 {[%clk 0:01:32.7]}
22... Qh5 {[%clk 0:01:25.3]} 23. Qe4 {[%clk 0:01:16.1]} 23... Rad8 {[%clk
0:01:08.9]} 24. Nc7 {[%clk 0:01:13]} 24... Bd7 {[%clk 0:01:00.6]} 25. gxh6
{[%clk 0:01:10.9]} 25... Bxh6 {[%clk 0:00:24.2]} 26. Bxh6 {[%clk 0:01:10.2]}
26... Qxh6 {[%clk 0:00:25.1]} 27. Qxb7 {[%clk 0:00:59.7]} 27... Qf6 {[%clk
0:00:20.2]} 28. Bf3 {[%clk 0:00:45.5]} 28... Qh6 {[%clk 0:00:14.3]} 29. Bxg4
{[%clk 0:00:29.5]} 29... Bxg4 {[%clk 0:00:14.5]} 30. Kg1 {[%clk 0:00:30]} 30...
Rd6 {[%clk 0:00:09.2]} 31. Nd5 {[%clk 0:00:24.5]} 31... Kh8 {[%clk 0:00:08]} 32.
Nf4 {[%clk 0:00:23.1]} 32... Rf6 {[%clk 0:00:06]} 33. Ng2 {[%clk 0:00:22.1]}
33... Bh3 {[%clk 0:00:04.8]} 34. Qe4 {[%clk 0:00:20.5]} 34... Rg8 {[%clk
0:00:04.1]} 35. Qxd4 {[%clk 0:00:19.2]} 35... Qg7 {[%clk 0:00:03.8]} 36. Qh4+
{[%clk 0:00:18.8]} 36... Rh6 {[%clk 0:00:04.5]} 37. Qf4 {[%clk 0:00:18.3]} 37...
Be6 {[%clk 0:00:04.8]} 38. Nh4 {[%clk 0:00:17.7]} 38... Bg4 {[%clk 0:00:05.3]}
39. Rc4 {[%clk 0:00:15.2]} 39... Rxh4 {[%clk 0:00:05.5]} 40. f3 {[%clk
0:00:11.1]} 40... Rh3 {[%clk 0:00:05.7]} 41. fxg4 {[%clk 0:00:11.3]} 41... Rh6
{[%clk 0:00:05.3]} 42. Kg2 {[%clk 0:00:10.9]} 42... Rh7 {[%clk 0:00:05.6]} 43.
Rh1 {[%clk 0:00:10.3]} 43... Rxh1 {[%clk 0:00:05.2]} 44. Kxh1 {[%clk 0:00:11.2]}
44... Qh7+ {[%clk 0:00:06.1]} 45. Kg2 {[%clk 0:00:11.3]} 45... Qg6 {[%clk
0:00:07]} 46. Qe5+ {[%clk 0:00:11.2]} 46... Kh7 {[%clk 0:00:07]} 47. Qh5+ {[%clk
0:00:11.2]} 47... Qxh5 {[%clk 0:00:06.9]} 48. gxh5 {[%clk 0:00:12.1]} 48... Rg5
{[%clk 0:00:07.2]} 49. g4 {[%clk 0:00:12.3]} 49... Ra5 {[%clk 0:00:07.7]} 50. a4
{[%clk 0:00:12.3]} 50... Ra6 {[%clk 0:00:08.4]} 51. Kf3 {[%clk 0:00:12.4]} 51...
Kh6 {[%clk 0:00:09]} 52. b3 {[%clk 0:00:11.8]} 52... f6 {[%clk 0:00:09.5]} 53.
Rb4 {[%clk 0:00:11.5]} 53... Rc6 {[%clk 0:00:09.1]} 54. Rb5 {[%clk 0:00:11.6]}
54... a6 {[%clk 0:00:09.4]} 55. Rb7 {[%clk 0:00:11.6]} 55... Kg5 {[%clk
0:00:08.4]} 56. Rg7+ {[%clk 0:00:10.3]} 56... Kh6 {[%clk 0:00:09]} 57. Rg6+
{[%clk 0:00:10.9]} 57... Kh7 {[%clk 0:00:09.6]} 58. e3 {[%clk 0:00:11.6]} 58...
Rb6 {[%clk 0:00:08.1]} 59. a5 {[%clk 0:00:11.5]} 59... Rb5 {[%clk 0:00:07.3]}
60. Rxf6 {[%clk 0:00:11.7]} 60... Rxa5 {[%clk 0:00:08.1]} 61. Kf4 {[%clk
0:00:11.4]} 61... Ra1 {[%clk 0:00:08.8]} 62. Kg5 {[%clk 0:00:11.1]} 62... Ra5+
{[%clk 0:00:07.7]} 63. Rf5 {[%clk 0:00:11.6]} 63... Ra3 {[%clk 0:00:08.3]} 64.
Rf7+ {[%clk 0:00:11.8]} 64... Kg8 {[%clk 0:00:08.5]} 65. Rb7 {[%clk 0:00:12.7]}
65... Ra5+ {[%clk 0:00:03]} 66. Kg6 {[%clk 0:00:12.9]} 66... Kf8 {[%clk
0:00:03.9]} 67. h6 {[%clk 0:00:13]} 67... Rb5 {[%clk 0:00:04.4]} 68. Rxb5 {[%clk
0:00:12.9]} 1-0

[Event "Early-Titled-Tuesday-Blitz-September-05-2023"]
[Site "Chess.com"]
[Date "2023.09.05"]
[Round "2"]
[White "Rikikits"]
[Black "TrenerChos"]
[Result "0-1"]
[WhiteElo "2846"]
[BlackElo "2608"]
[TimeControl "180+1"]
[EndTime "8:18:48 PDT"]
[Termination "TrenerChos won on time"]

1. b3 {[%clk 0:03:00.9]} 1... Nf6 {[%clk 0:03:00.9]} 2. Bb2 {[%clk 0:03:00.7]}
2... g6 {[%clk 0:03:01.1]} 3. Bxf6 {[%clk 0:02:59.9]} 3... exf6 {[%clk
0:03:01.2]} 4. c4 {[%clk 0:03:00.6]} 4... Bg7 {[%clk 0:03:01.9]} 5. Nc3 {[%clk
0:03:00.4]} 5... O-O {[%clk 0:03:02.3]} 6. g3 {[%clk 0:03:00.9]} 6... f5 {[%clk
0:03:00.1]} 7. Rc1 {[%clk 0:03:00.8]} 7... Nc6 {[%clk 0:03:00]} 8. Bg2 {[%clk
0:02:59.3]} 8... Re8 {[%clk 0:02:59.5]} 9. Nf3 {[%clk 0:02:57.5]} 9... b6 {[%clk
0:02:59.6]} 10. d4 {[%clk 0:02:55]} 10... Bb7 {[%clk 0:02:59.3]} 11. O-O {[%clk
0:02:54.4]} 11... d6 {[%clk 0:02:59.4]} 12. d5 {[%clk 0:02:53.1]} 12... Ne5
{[%clk 0:02:58]} 13. Nd4 {[%clk 0:02:52.9]} 13... a6 {[%clk 0:02:57.4]} 14. e3
{[%clk 0:02:50.8]} 14... h5 {[%clk 0:02:57.3]} 15. h4 {[%clk 0:02:49.7]} 15...
Ng4 {[%clk 0:02:57.3]} 16. Re1 {[%clk 0:02:40.9]} 16... f4 {[%clk 0:02:54.9]}
17. gxf4 {[%clk 0:02:29.3]} 17... Bxd4 {[%clk 0:02:54.7]} 18. Qxd4 {[%clk
0:02:25.7]} 18... Qxh4 {[%clk 0:02:54]} 19. Qd2 {[%clk 0:02:15.6]} 19... Re7
{[%clk 0:02:47.2]} 20. f3 {[%clk 0:01:55.1]} 20... Qh2+ {[%clk 0:02:33.9]} 21.
Kf1 {[%clk 0:01:42.6]} 21... Nh6 {[%clk 0:02:33.2]} 22. e4 {[%clk 0:01:11.3]}
22... h4 {[%clk 0:02:29.5]} 23. Re2 {[%clk 0:00:58.4]} 23... h3 {[%clk
0:02:28.4]} 24. Rce1 {[%clk 0:00:51.8]} 24... Rae8 {[%clk 0:02:14.2]} 25. Bxh3
{[%clk 0:00:34]} 25... Qxh3+ {[%clk 0:02:13.6]} 26. Kf2 {[%clk 0:00:34.7]} 26...
Bc8 {[%clk 0:02:07.3]} 27. Rg1 {[%clk 0:00:34.1]} 27... Qh4+ {[%clk 0:01:57.4]}
28. Ke3 {[%clk 0:00:32.2]} 28... Qf6 {[%clk 0:01:41.4]} 29. Kd3 {[%clk
0:00:29.6]} 29... Nf5 {[%clk 0:01:38.2]} 30. Qe1 {[%clk 0:00:11.8]} 30... Nd4
{[%clk 0:01:34.5]} 31. Re3 {[%clk 0:00:08.1]} 31... Nf5 {[%clk 0:01:28.4]} 32.
Re2 {[%clk 0:00:07.3]} 32... Nh4 {[%clk 0:01:24.7]} 33. Qg3 {[%clk 0:00:05.3]}
33... Nf5 {[%clk 0:01:14.1]} 34. Qf2 {[%clk 0:00:05.2]} 34... b5 {[%clk
0:01:13.1]} 35. Rh1 {[%clk 0:00:02.6]} 35... b4 {[%clk 0:01:05.2]} 36. Nd1
{[%clk 0:00:01.9]} 36... Qa1 {[%clk 0:01:01.1]} 37. Qh2 {[%clk 0:00:02.1]} 37...
Qd4+ {[%clk 0:00:49]} 38. Kc2 {[%clk 0:00:02.3]} 38... Qg7 {[%clk 0:00:48.8]}
39. Rg2 {[%clk 0:00:01.5]} 39... c6 {[%clk 0:00:45.4]} 40. Kb1 {[%clk 0:00:02]}
40... cxd5 {[%clk 0:00:44.6]} 41. cxd5 {[%clk 0:00:02.9]} 41... Nd4 {[%clk
0:00:44.7]} 42. Rg3 {[%clk 0:00:02.2]} 42... Nb5 {[%clk 0:00:43]} 43. Nb2 {[%clk
0:00:02.7]} 43... a5 {[%clk 0:00:34]} 44. f5 {[%clk 0:00:02.9]} 44... Bxf5
{[%clk 0:00:31.8]} 45. exf5 {[%clk 0:00:02.7]} 45... Na3+ {[%clk 0:00:31.9]} 46.
Kc1 {[%clk 0:00:02.4]} 46... Re1+ {[%clk 0:00:30.9]} 47. Kd2 {[%clk 0:00:02.7]}
47... R8e7 {[%clk 0:00:31.8]} 48. f6 {[%clk 0:00:02.2]} 48... Qxf6 {[%clk
0:00:24.3]} 49. Qh7+ {[%clk 0:00:01.7]} 49... Kf8 {[%clk 0:00:24.4]} 50. Qh8+
{[%clk 0:00:02.6]} 50... Qxh8 {[%clk 0:00:24.4]} 51. Rxh8+ {[%clk 0:00:03.5]}
51... Kg7 {[%clk 0:00:24.8]} 52. Rgh3 {[%clk 0:00:04.4]} 52... R1e2+ {[%clk
0:00:20.9]} 53. Kc1 {[%clk 0:00:04.8]} 53... Rc2+ {[%clk 0:00:20.8]} 54. Kd1
{[%clk 0:00:05.4]} 54... Rxb2 {[%clk 0:00:20.9]} 55. R8h7+ {[%clk 0:00:05.7]}
55... Kf6 {[%clk 0:00:20.3]} 56. R3h4 {[%clk 0:00:06]} 56... Ree2 {[%clk
0:00:17.7]} 57. Rf4+ {[%clk 0:00:06.1]} 57... Ke5 {[%clk 0:00:18]} 58. Re4+
{[%clk 0:00:04.2]} 58... Rxe4 {[%clk 0:00:17.9]} 59. fxe4 {[%clk 0:00:05.1]}
59... Kxe4 {[%clk 0:00:18.4]} 60. Rxf7 {[%clk 0:00:06]} 60... Rxa2 {[%clk
0:00:17.8]} 61. Rf6 {[%clk 0:00:06.5]} 61... Nb5 {[%clk 0:00:17.8]} 62. Rxg6
{[%clk 0:00:06.7]} 62... Nc3+ {[%clk 0:00:17.5]} 63. Ke1 {[%clk 0:00:07.2]}
63... Kxd5 {[%clk 0:00:18.4]} 64. Rg5+ {[%clk 0:00:07.3]} 64... Kd4 {[%clk
0:00:17.7]} 65. Rg4+ {[%clk 0:00:07.4]} 65... Kc5 {[%clk 0:00:16.8]} 66. Rg3
{[%clk 0:00:08.3]} 66... d5 {[%clk 0:00:17.6]} 67. Rg8 {[%clk 0:00:08.4]} 67...
a4 {[%clk 0:00:17.7]} 68. Rc8+ {[%clk 0:00:09]} 68... Kd4 {[%clk 0:00:18]} 69.
bxa4 {[%clk 0:00:09.9]} 69... Rxa4 {[%clk 0:00:18.6]} 0-1